fUSD/lending_fUSD_20260121
["ID","MTS","AMOUNT","RATE_DAILY","PERIOD"]
[402998456,1769034641190,-168.0,0.00019333,2]
[402998457,1769034641200,-532.0,0.000196,2]
[402998458,1769034641210,-500.0,0.00019656,9]
[402998459,1769034641219,-248.53291889,0.00019656,9]
[402998460,1769034641228,-500.0,0.00019711,9]
[402998461,1769034641237,-500.0,0.00019766,9]
[402998462,1769034641246,-500.0,0.0001982,9]
[402998463,1769034641258,-500.0,0.00019875,9]
[402998464,1769034641267,-500.0,0.0001993,9]
[402998465,1769034641276,-150.00937743,0.0001993,9]
[402998466,1769034641285,-500.0,0.00019985,9]
[402998467,1769034641295,-1067.73274922,0.0002,30]
[402998468,1769034641304,-7500.0,0.0002,2]
[402998469,1769034641313,-3950.0,0.0002,2]
[402998470,1769034641323,-1293.66679101,0.0002,2]
[402998471,1769034641335,-1044.25996146,0.0002,2]
[402998472,1769034641344,-2861.70210159,0.0002,2]
[402998473,1769034641354,-12915.32759444,0.0002,2]
[402998474,1769034641363,-152.0,0.0002,2]
[402998475,1769034641372,-150.0,0.0002,2]
[402998476,1769034641382,-150.0,0.0002,2]
[402998477,1769034641391,-195.71302726,0.0002,2]
[402998478,1769034641400,-8720.0,0.0002001,2]
[402998479,1769034641409,-500.0,0.0002004,9]
[402998480,1769034641418,-150.0,0.00020081,2]
[402998481,1769034641427,-500.0,0.00020094,9]
[402998482,1769034641437,-150.0,0.00020136,2]
[402998483,1769034641446,-500.0,0.00020149,9]
[402998484,1769034641455,-203.51325329,0.00020191,2]
[402998485,1769034641464,-500.0,0.00020204,9]
[402998486,1769034641474,-500.0,0.00020259,9]
[402998487,1769034641483,-500.0,0.00020314,9]
[402998488,1769034641492,-1000.0,0.00020355,2]
[402998489,1769034641501,-500.0,0.00020368,9]
[402998490,1769034641510,-431.0,0.00020408,2]
[402998491,1769034641518,-500.0,0.00020408,2]
[402998492,1769034641528,-150.0,0.00020408,2]
[402998493,1769034641537,-150.0,0.00020408,2]
[402998494,1769034641546,-150.0,0.00020408,2]
[402998495,1769034641555,-500.0,0.00020423,9]
[402998496,1769034641565,-431.0,0.00020463,2]
[402998497,1769034641574,-500.0,0.00020463,2]
[402998498,1769034641584,-200.00000017,0.00020463,2]
[402998499,1769034641593,-150.0,0.00020463,2]
[402998500,1769034641604,-150.0,0.00020463,2]
[402998501,1769034641614,-448.16951769,0.00020478,9]
[402998502,1769034641623,-150.0,0.000205,7]
[402998503,1769034641634,-431.0,0.00020518,2]
[402998504,1769034641643,-500.0,0.00020518,2]
[402998505,1769034641652,-217.72624624,0.00020518,2]
[402998506,1769034641661,-200.0,0.00020518,2]
[402998507,1769034641672,-4724.3092983,0.00020548,2]
[402998508,1769034642033,-265.1286,0.00020548,2]
[402998509,1769034642110,-350.0,0.00018,2]
[402998510,1769034642119,-1194.72804517,0.00020548,2]
[402998513,1769034643282,-350.0,0.00018,2]
[402998514,1769034643291,-350.0,0.00018,2]
[402998515,1769034643302,-350.0,0.00018,2]
[402998516,1769034643311,-350.0,0.00018,2]
[402998517,1769034643320,-350.0,0.00018,2]
[402998518,1769034643331,-350.0,0.00018,2]
[402998519,1769034643340,-350.0,0.00018,2]
[402998520,1769034643349,-350.0,0.00018,2]
[402998521,1769034643360,-350.0,0.00018,2]
[402998522,1769034643369,-150.0,0.00020548,2]
[402998523,1769034643509,-350.0,0.00018,2]
[402998524,1769034643518,-15177.11405653,0.00020548,2]
[402998525,1769034643527,-431.0,0.00020572,2]
[402998526,1769034643536,-500.0,0.00020572,2]
[402998527,1769034643545,-431.0,0.00020627,2]
[402998528,1769034643554,-500.0,0.00020627,2]
[402998530,1769034643563,-587.0,0.00020639,2]
[402998531,1769034643572,-587.0,0.00020639,2]
[402998532,1769034643581,-431.0,0.00020682,2]
[402998533,1769034643591,-500.0,0.00020682,2]
[402998534,1769034643599,-22642.36702575,0.000207,2]
[402998535,1769034643609,-431.0,0.00020737,2]
[402998536,1769034643618,-500.0,0.00020737,2]
[402998537,1769034643627,-431.0,0.00020792,2]
[402998538,1769034643636,-500.0,0.00020792,2]
[402998539,1769034643645,-2351.0,0.00020844,2]
[402998540,1769034643654,-431.0,0.00020846,2]
[402998541,1769034643664,-500.0,0.00020846,2]
[402998542,1769034643673,-158.37327714,0.00020897,2]
[402998543,1769034643682,-431.0,0.00020901,2]
[402998544,1769034643692,-500.0,0.00020901,2]
[402998545,1769034643701,-431.0,0.00020956,2]
[402998546,1769034643710,-500.0,0.00020956,2]
[402998547,1769034643720,-20000.0,0.00021,2]
[402998549,1769034643729,-1006.22365308,0.00021,2]
[402998551,1769034643738,-1192.88230733,0.00021,2]
[402998553,1769034643748,-196.89514318,0.00021,2]
[402998555,1769034643758,-431.0,0.00021011,2]
[402998557,1769034643767,-500.0,0.00021011,2]
[402998559,1769034643777,-431.0,0.00021066,2]
[402998560,1769034643786,-500.0,0.00021066,2]
[402998561,1769034643795,-431.0,0.0002112,2]
[402998562,1769034643805,-500.0,0.0002112,2]
[402998563,1769034643814,-150.00937743,0.00021175,13]
[402998564,1769034643823,-431.0,0.00021175,2]
[402998565,1769034643832,-500.0,0.00021175,2]
[402998566,1769034643841,-431.0,0.0002123,2]
[402998567,1769034643851,-500.0,0.0002123,2]
[402998568,1769034643860,-449.45,0.00021249,2]
[402998569,1769034643869,-431.0,0.00021285,2]
[402998570,1769034643879,-500.0,0.00021285,2]
[402998571,1769034643888,-431.0,0.0002134,2]
[402998572,1769034643897,-545.0,0.0002134,2]
[402998573,1769034643906,-431.0,0.00021394,2]
[402998574,1769034643916,-431.0,0.00021449,2]
[402998575,1769034643925,-300.0,0.00021499,2]
[402998576,1769034643935,-300.0,0.00021499,2]
[402998577,1769034643944,-57523.47604048,0.000215,2]
[402998578,1769034643953,-222.09492643,0.000215,2]
[402998579,1769034643962,-431.0,0.00021504,2]
[402998580,1769034643971,-485.84,0.00021511,2]
[402998581,1769034643980,-449.45,0.00021523,2]
[402998582,1769034643989,-431.0,0.00021559,2]
[402998583,1769034643999,-431.0,0.00021613,2]
[402998584,1769034644007,-451.55062828,0.00021668,2]
[402998585,1769034644017,-150.99,0.00021757,2]
[402998586,1769034644026,-485.84,0.00021785,2]
[402998587,1769034644035,-449.45,0.00021797,2]
[402998588,1769034644044,-500.0,0.00021918,2]
[402998589,1769034644053,-500.0,0.00021918,9]
[402998590,1769034644063,-150.0,0.00021918,2]
[402998591,1769034644073,-500.59722619,0.00021973,2]
[402998592,1769034644083,-500.39118825,0.00021973,9]
[402998593,1769034644093,-679.43,0.00022,7]
[402998594,1769034644103,-9084.83,0.00022,2]
[402998595,1769034644112,-485.84,0.00022059,2]
[402998596,1769034644121,-330.57,0.00022071,2]
[402998597,1769034644130,-150.00937743,0.00022421,18]
[402998598,1769034644139,-823.0,0.00022535,2]
[402998599,1769034644148,-236.0,0.00022535,2]
[402998600,1769034644157,-1429.85954094,0.0002259,2]
[402998601,1769034644166,-200.0,0.00022823,2]
[402998602,1769034644175,-3292.0,0.00022871,2]
[402998603,1769034644184,-11172.34842468,0.00023,2]
[402998604,1769034644194,-1158.71,0.00023066,2]
[402998605,1769034644204,-1000.0,0.00023122,2]
[402998606,1769034644214,-500.0,0.00023288,2]
[402998607,1769034644223,-150.00937743,0.00023666,22]
[402998608,1769034644232,-3343.46664413,0.0002375,2]
[402998609,1769034644241,-1152.0,0.00024605,2]
[402998610,1769034644252,-237.10879103,0.0002463,2]
[402998611,1769034644264,-172.95,0.00024658,2]
[402998612,1769034644274,-150.0,0.00024658,2]
[402998613,1769034644283,-300.0,0.00024799,10]
[402998614,1769034644292,-220824.354419,0.000248,2]
[402998615,1769034644303,-150.00937743,0.00024911,26]
[402998616,1769034644312,-151.39777899,0.00025,2]
[402998617,1769034644321,-9084.83,0.00025,2]
[402998618,1769034644332,-1081.0,0.00025096,2]
[402998619,1769034644341,-300.0,0.00025389,10]
[402998620,1769034644351,-19108.37901527,0.0002539,2]
[402998621,1769034644366,-30315.97474913,0.0002539,2]
[402998622,1769034644375,-9391.56,0.00025953,2]
[402998623,1769034644384,-599.62014555,0.0002599,2]
[402998624,1769034644394,-4513.20308318,0.00026,2]
[402998625,1769034644403,-1000.0,0.00026,15]
[402998626,1769034644413,-1000.0,0.00026013,2]
[402998627,1769034644423,-150.00937743,0.00026156,31]
[402998628,1769034644433,-166.66,0.00026411,30]
[402998629,1769034644444,-1429.85954094,0.00026595,2]
[402998630,1769034644453,-679.43,0.000266,7]
[402998631,1769034644462,-287.28,0.00026829,2]
[402998632,1769034644472,-1613.0,0.00026866,2]
[402998633,1769034644481,-166.66,0.00026872,2]
[402998634,1769034644490,-166.66,0.00026967,30]
[402998635,1769034644499,-500.0,0.00027068,2]
[402998636,1769034644509,-316.14505471,0.0002737,30]
[402998637,1769034644518,-252.2,0.00027397,2]
[402998638,1769034644528,-172.95,0.00027397,2]
[402998639,1769034644538,-150.00937743,0.00027401,34]
[402998640,1769034644547,-166.66,0.00027523,30]
[402998641,1769034644556,-242.87,0.00027531,120]
[402998642,1769034644565,-242.87,0.00027586,120]
[402998643,1769034644575,-470.40657766,0.00027851,3]
[402998644,1769034644583,-1081.6112474,0.00027851,3]
[402998645,1769034644593,-12510.07,0.00027895,2]
[402998646,1769034644602,-1000.0,0.00028,20]
[402998647,1769034644611,-9084.83,0.00028,2]
[402998648,1769034644620,-3205.162519,0.00028,60]
[402998649,1769034644630,-166.66,0.00028079,30]
[402998650,1769034644639,-847.41,0.0002836,2]
[402998651,1769034644648,-58121.0,0.000285,2]
[402998652,1769034644657,-166.66,0.00028635,30]
[402998653,1769034644667,-150.00937743,0.00028646,37]
[402998654,1769034644678,-1000.0,0.00028903,2]
[402998655,1769034644687,-242.87,0.00028908,120]
[402998656,1769034644697,-1000.0,0.00029,10]
[402998657,1769034644706,-166.66,0.00029089,2]
[402998658,1769034644715,-445.729,0.00029124,22]
[402998659,1769034644725,-156.78,0.00029157,2]
[402998660,1769034644734,-150.0,0.00029157,2]
[402998661,1769034644744,-166.66,0.00029191,30]
[402998662,1769034644753,-679.43,0.000292,7]
[402998663,1769034644762,-2258.0,0.00029334,2]
[402998664,1769034644771,-345.72,0.000294,14]
[402998665,1769034644780,-5533.0,0.000294,3]
[402998666,1769034644790,-847.41,0.00029423,2]
[402998667,1769034644799,-4099.763,0.00029672,23]
[402998668,1769034644809,-150.00937743,0.00029892,41]
[402998669,1769034644818,-2982.31543905,0.0003,5]
[402998670,1769034646396,-271.74516033,0.00018,2]
[402998671,1769034646457,-78.25483967,0.00018,2]
[402998672,1769034646467,-350.0,0.00018,2]
[402998673,1769034646476,-350.0,0.00018,2]
[402998674,1769034646485,-350.0,0.00018,2]
[402998675,1769034646495,-350.0,0.00018,2]
[402998676,1769034646504,-350.0,0.00018,2]
[402998677,1769034646514,-100.95106433,0.00018,2]
[402998680,1769034936098,209.0,9.989e-05,2]
[402998681,1769034936452,209.0,9.989e-05,2]
[402998682,1769035750781,-1200.0,0.00017477,2]
[402998683,1769035750807,-300.0,0.00017477,2]
[402998684,1769035750833,-300.0,0.00017477,2]
[402998685,1769035750858,-300.0,0.00017477,2]
[402998686,1769035750885,-200.0,0.00017478,2]
[402998687,1769035750911,-200.0,0.00017478,2]
[402998688,1769035750937,-151.0,0.00017478,2]
[402998689,1769035750963,-151.0,0.00017478,2]
[402998690,1769035750988,-151.0,0.00017478,2]
[402998691,1769035751014,-500.0,0.00017478,2]
[402998692,1769035751048,-151.0,0.00017478,2]
[402998693,1769035751075,-500.0,0.00017478,2]
[402998694,1769035751104,-151.0,0.00017478,2]
[402998695,1769035751130,-500.0,0.00017478,2]
[402998696,1769035751160,-151.0,0.00017478,2]
[402998697,1769035751186,-500.0,0.00017478,2]
[402998698,1769035751213,-151.0,0.00017478,2]
[402998699,1769035751239,-500.0,0.00017478,2]
[402998700,1769035751265,-151.0,0.00017478,2]
[402998701,1769035751291,-500.0,0.00017478,2]
[402998702,1769035751318,-151.0,0.00017478,2]
[402998703,1769035751343,-500.0,0.00017478,2]
[402998704,1769035751369,-151.0,0.00017478,2]
[402998705,1769035751395,-500.0,0.00017478,2]
[402998706,1769035751420,-151.0,0.00017478,2]
[402998707,1769035751447,-500.0,0.00017478,2]
[402998708,1769035751472,-151.0,0.00017478,2]
[402998709,1769035751498,-500.0,0.00017478,2]
[402998710,1769035751524,-163.56,0.00017487,2]
[402998711,1769035751552,-44679.152,0.00017488,2]
[402998712,1769035751578,-151.0,0.0001751,2]
[402998713,1769035751604,-151.0,0.0001751,2]
[402998714,1769035751635,-150.00299326,0.00017617,2]
[402998715,1769035751664,-561.1494,0.000179,2]
[402998716,1769035761958,151.0,0.00017793,2]
[402998717,1769035778119,151.0,0.00017793,2]
[402998718,1769035794282,151.0,0.00017793,2]
[402998719,1769035826607,151.0,0.00017908,2]
[402998721,1769035831366,-151.0,0.00018271,2]
[402998722,1769035831376,-168.0,0.00018385,2]
[402998723,1769035831386,-150.00299345,0.00018904,5]
[402998724,1769035831396,-420.0,0.00019079,2]
[402998725,1769035831405,-1200.0,0.00019177,2]
[402998726,1769035831414,-6851.79839178,0.00019178,2]
[402998727,1769035831424,-168.0,0.00019347,2]
[402998728,1769035831437,-335.95984367,0.000196,2]
[402998729,1769035831453,-196.04015633,0.000196,2]
[402998730,1769035831463,-1318.0,0.00019686,2]
[402998731,1769035831472,-277.0,0.00019911,2]
[402998732,1769035831482,-150.0,0.0002,2]
[402998733,1769035831492,-150.0,0.0002,2]
[402998734,1769035831502,-195.71302726,0.0002,2]
[402998735,1769035831513,-924.0,0.00020028,2]
[402998736,1769035831522,-183.37435585,0.00020216,2]
[402998737,1769035831532,-151.0,0.00020217,2]
[402998738,1769035831541,-250.0,0.00020224,2]
[402998739,1769035831552,-780.0,0.00020428,2]
[402998740,1769035831562,-311.01360145,0.00020469,2]
[402998741,1769035831585,-687.98639855,0.00020469,2]
[402998742,1769035831598,-150.0,0.000205,7]
[402998743,1769035831607,-273.81075799,0.0002082,2]
[402998744,1769035831628,-15.18924201,0.0002082,2]
[402998745,1769035831638,-375.1834773,0.00020861,2]
[402998764,1769035837444,-457.13156376,0.00020861,2]
[402998765,1769035837454,-734.25007158,0.00020861,2]
[402998766,1769035837465,-289.43488736,0.00020861,2]
[402998767,1769035837474,-184.0,0.0002094,2]
[402998768,1769035837483,-480.0,0.00021,2]
[402998769,1769035837492,-427.0,0.00021026,2]
[402998770,1769035837501,-500.0,0.00021124,2]
[402998771,1769035837510,-934.0,0.00021236,2]
[402998772,1769035837519,-500.0,0.00021699,9]
[402998773,1769035837528,-210.20107103,0.00021699,9]
[402998774,1769035837537,-150.0,0.00021699,9]
[402998775,1769035837546,-500.0,0.00021699,2]
[402998776,1769035837555,-150.0,0.00021699,2]
[402998777,1769035837564,-150.0,0.00021699,2]
[402998778,1769035837573,-150.0,0.00021699,2]
[402998779,1769035837582,-150.0,0.00021699,2]
[402998780,1769035837593,-162.39,0.00021699,2]
[402998781,1769035837603,-150.0,0.00021699,2]
[402998782,1769035837612,-500.0,0.00021754,9]
[402998783,1769035837621,-500.0,0.00021754,2]
[402998784,1769035837629,-200.00000017,0.00021754,2]
[402998785,1769035837641,-150.0,0.00021754,2]
[402998786,1769035837650,-150.0,0.00021754,2]
[402998787,1769035837658,-150.0,0.00021754,2]
[402998788,1769035837671,-150.0,0.00021754,2]
[402998789,1769035837681,-500.0,0.00021809,9]
[402998790,1769035837690,-500.0,0.00021809,2]
[402998791,1769035837699,-250.0,0.00021809,2]
[402998792,1769035837708,-217.72624624,0.00021809,2]
[402998793,1769035837717,-200.0,0.00021809,2]
[402998794,1769035837727,-203.51325329,0.00021809,2]
[402998795,1769035837737,-429.71532383,0.00021863,9]
[402998796,1769035837748,-70.28467617,0.00021863,9]
[402998797,1769035837766,-500.0,0.00021918,9]
[402998798,1769035837777,-215.76299228,0.00021973,9]
[402998799,1769035837801,-284.23700772,0.00021973,9]
[402998800,1769035837811,-162.4,0.00021973,2]
[402998801,1769035837821,-500.0,0.00022028,9]
[402998802,1769035837832,-500.0,0.00022083,9]
[402998803,1769035837842,-500.0,0.00022137,9]
[402998804,1769035837852,-246.67088016,0.00022192,9]
[402998805,1769035837877,-253.32911984,0.00022192,9]
[402998806,1769035837887,-500.0,0.00022247,9]
[402998807,1769035837899,-500.0,0.00022302,9]
[402998808,1769035837908,-500.0,0.00022357,9]
[402998809,1769035837917,-500.0,0.00022411,9]
[402998810,1769035837927,-226.59357674,0.00022466,9]
[402998811,1769035839458,-273.40642326,0.00022466,9]
[402998812,1769035839467,-448.16951769,0.00022521,9]
[402998813,1769035839476,-225.72,0.000226,2]
[402998814,1769035839486,-181.9,0.00022694,2]
[402998815,1769035839496,-589.0,0.00022727,2]
[402998816,1769035839507,-151.0,0.00022956,2]
[402998817,1769035839516,-250.0,0.00023093,2]
[402998818,1769035839526,-187.43,0.00023547,2]
[402998819,1769035839535,-200.6,0.00023814,2]
[402998820,1769035839545,-1216.0,0.00024041,2]
[402998821,1769035839554,-500.0,0.00024097,2]
[402998822,1769035839563,-4770.77405905,0.00024527,2]
[402998823,1769035839741,-6025.0,0.00024527,2]
[402998825,1769035842399,-900.09378034,0.00024527,2]
[402998827,1769035842456,-330.28996395,0.00024527,2]
[402998828,1769035842469,-533.77400246,0.00024527,2]
[402998829,1769035842584,-388.14500003,0.00024527,2]
[402998830,1769035842626,-971.81328667,0.00024527,2]
[402998831,1769035842640,-19.8199075,0.00024527,2]
[402998832,1769035842650,-1000.0,0.00025422,2]
[402998833,1769035842660,-1297.73,0.00025425,2]
[402998834,1769035842672,-151.0,0.00025695,2]
[402998835,1769035842681,-322.61070001,0.00025863,2]
[402998836,1769035842692,-151.0,0.00025863,2]
[402998837,1769035842702,-500.0,0.00025863,2]
[402998838,1769035842713,-533.88981491,0.00025863,2]
[402998839,1769035842724,-194.72792766,0.00025863,2]
[402998840,1769035842734,-174.61919141,0.00025863,2]
[402998841,1769035842743,-151.0,0.00025863,2]
[402998842,1769035842754,-151.0,0.00025863,2]
[402998843,1769035842765,-151.0,0.00025863,2]
[402998844,1769035842775,-151.0,0.00025863,2]
[402998845,1769035842786,-151.0,0.00025863,2]
[402998846,1769035842795,-151.0,0.00025863,2]
[402998847,1769035842804,-151.0,0.00025863,2]
[402998848,1769035842814,-151.0,0.00025863,2]
[402998849,1769035842823,-89.30442493,0.00025863,2]
[402998850,1769035842835,-61.69557507,0.00025863,2]
[402998851,1769035842844,-151.0,0.00025863,2]
[402998852,1769035842854,-75.9532212,0.00025863,2]
[402998853,1769035842887,-75.0467788,0.00025863,2]
[402998854,1769035842897,-151.0,0.00025863,2]
[402998855,1769035842906,-151.0,0.00025863,2]
[402998856,1769035842915,-387.826,0.0002633,13]
[402998857,1769035842925,-102.38790376,0.00026411,2]
[402998858,1769035842975,-451.25583431,0.00026411,2]
[402998859,1769035843226,-188.92604411,0.00026411,2]
[402998860,1769035843245,-181.08010149,0.00026411,2]
[402998861,1769035843254,-574.12855637,0.00026959,2]
[402998862,1769035843267,-155.06,0.00027221,2]
[402998863,1769035843277,-155.06,0.00027292,2]
[402998864,1769035843286,-155.06,0.00027364,2]
[402998865,1769035843295,-3606.501,0.0002737,16]
[402998866,1769035843304,-155.06,0.00027436,2]
[402998867,1769035843313,-150.0,0.000275,5]
[402998868,1769035843322,-155.06,0.00027507,2]
[402998869,1769035843331,-595.37131296,0.00027507,2]
[402998870,1769035843340,-155.06,0.00027579,2]
[402998871,1769035843349,-155.06,0.00027651,2]
[402998872,1769035843359,-155.06,0.00027722,2]
[402998873,1769035843369,-155.06,0.00027794,2]
[402998874,1769035843380,-155.06,0.00027865,2]
[402998875,1769035843390,-500.0,0.00027884,2]
[402998876,1769035843399,-500.0,0.00027885,2]
[402998877,1769035843408,-500.0,0.00027886,2]
[402998878,1769035843418,-498.59899,0.00027887,2]
[402998879,1769035843429,-2000.0,0.000279,2]
[402998880,1769035843439,-155.06,0.00027937,2]
[402998881,1769035843448,-155.06,0.00028009,2]
[402998882,1769035843457,-617.40005154,0.00028055,2]
[402998883,1769035843467,-155.06,0.0002808,2]
[402998884,1769035843475,-155.06,0.00028152,2]
[402998885,1769035843484,-155.06,0.00028224,2]
[402998886,1769035843493,-2013.2797297,0.00028248,2]
[402998887,1769035843503,-4979.96497761,0.00028248,2]
[402998888,1769035845331,-151.0,0.00020867,2]
[402998889,1769035845341,-1066.05713229,0.00028248,2]
[402998890,1769035845390,-3906.20452046,0.00028248,2]
[402998891,1769035845402,-9514.00003834,0.00028248,2]
[402998892,1769035845453,-3712.95589698,0.00028248,2]
[402998893,1769035845465,-1085.30004991,0.00028248,2]
[402998894,1769035845476,-3142.2,0.00028248,2]
[402998895,1769035845487,-2180.0,0.00028248,2]
[402998896,1769035845566,-16214.22461897,0.00028248,2]
[402998897,1769035845577,-1292.52388058,0.00028248,2]
[402998906,1769035921224,250.0,0.00017,2]
[402998908,1769036103730,500.0,0.000226,120]
[402998909,1769036142036,500.0,0.00017999,2]
[402998910,1769036142269,500.0,0.00017999,2]
[402998911,1769036142496,500.0,0.00017999,2]
[402998912,1769036142733,500.0,0.00017999,2]
[402998913,1769036142973,500.0,0.00017999,2]
[402998914,1769036143257,500.0,0.00017999,2]
[402998915,1769036143502,500.0,0.00017999,2]
[402998918,1769036750198,1500.0,0.00018,3]
[402998919,1769036768564,1513.90317165,0.000226,120]
[402998925,1769037031455,-151.0,0.00018429,2]
[402998926,1769037031466,-195.0,0.00018457,2]
[402998927,1769037031476,-300.0,0.00019,2]
[402998928,1769037031486,-150.00936506,0.000196,8]
[402998929,1769037031495,-532.0,0.000196,2]
[402998930,1769037031505,-168.0,0.00019992,2]
[402998931,1769037031514,-100.51326682,0.00020114,2]
[402998932,1769037031525,-67.48673318,0.00020114,2]
[402998933,1769037031535,-274.0,0.00020276,2]
[402998934,1769037031544,-24.64522387,0.00020301,2]
[402998935,1769037031556,-170.35477613,0.00020301,2]
[402998936,1769037031565,-129.64522387,0.00020301,2]
[402998937,1769037031577,-330.07855338,0.00020301,2]
[402998938,1769037031586,-151.0,0.00020308,2]
[402998939,1769037031595,-530.11321875,0.00020318,2]
[402998940,1769037031647,-500.0,0.00020318,2]
[402998981,1769037037540,-169.88678125,0.00020318,2]
[402998982,1769037037550,-823.45474216,0.00020319,2]
[402998983,1769037037601,-376.54525784,0.00020319,2]
[402998984,1769037037611,-300.0,0.00020319,2]
[402998985,1769037037620,-168.0,0.0002034,2]
[402998986,1769037037629,-168.0,0.00020343,2]
[402998987,1769037037638,-168.0,0.00020484,2]
[402998988,1769037037647,-40.5757657,0.000205,7]
[402998989,1769037037659,-109.4242343,0.000205,7]
[402998990,1769037037668,-168.0,0.00020513,2]
[402998991,1769037037679,-1997.61245488,0.000206,3]
[402998992,1769037037693,-1580.35066877,0.000206,3]
[402998993,1769037037704,-1177.11836128,0.000206,3]
[402998994,1769037037715,-777.91851507,0.000206,3]
[402998995,1769037037725,-168.0,0.00020628,2]
[402998996,1769037037735,-150.00936506,0.00020814,12]
[402998997,1769037037744,-168.0,0.00020829,2]
[402998998,1769037037754,-168.0,0.000209,2]
[402998999,1769037037766,-168.0,0.0002091,2]
[402999001,1769037037776,-168.0,0.00020922,2]
[402999003,1769037037785,-3605.71528041,0.00021,5]
[402999004,1769037037811,-984.20333733,0.00021,5]
[402999005,1769037037822,-560.84312454,0.00021,5]
[402999011,1769037039809,-382.23825772,0.00021,5]
[402999012,1769037039818,-370.0,0.00021099,2]
[402999013,1769037039830,-200.0,0.00021169,2]
[402999014,1769037039839,-47.76174211,0.00021169,2]
[402999015,1769037039850,-152.23825789,0.00021169,2]
[402999016,1769037039860,-151.0,0.00021169,2]
[402999017,1769037039869,-151.0,0.00021169,2]
[402999018,1769037039878,-151.0,0.00021169,2]
[402999019,1769037039887,-151.0,0.00021169,2]
[402999020,1769037039896,-151.0,0.00021169,2]
[402999021,1769037039905,-151.0,0.00021169,2]
[402999022,1769037039914,-151.0,0.00021169,2]
[402999023,1769037039923,-151.0,0.00021169,2]
[402999024,1769037039933,-151.0,0.00021169,2]
[402999025,1769037039943,-151.0,0.00021169,2]
[402999026,1769037039952,-151.0,0.00021169,2]
[402999027,1769037039961,-151.0,0.00021169,2]
[402999028,1769037039969,-151.0,0.00021169,2]
[402999029,1769037039979,-200.0,0.00021169,2]
[402999030,1769037039988,-500.0,0.00021169,2]
[402999031,1769037039997,-168.0,0.00021183,2]
[402999032,1769037040007,-1500.0,0.0002126,2]
[402999033,1769037040016,-164.59,0.000215,2]
[402999034,1769037040026,-508.44,0.00021508,2]
[402999035,1769037040035,-168.0,0.00021544,2]
[402999036,1769037040045,-185.76,0.00021554,2]
[402999037,1769037040054,-707.57174228,0.000216,2]
[402999039,1769037040239,-6258.7835539,0.000216,2]
[402999040,1769037040264,-3426.53490382,0.000216,2]
[402999041,1769037040276,-168.0,0.0002174,2]
[402999042,1769037040285,-150.99,0.00021757,2]
[402999044,1769037040295,-9999.99,0.00021757,2]
[402999046,1769037040304,-150.99,0.00021757,2]
[402999047,1769037040313,-999.99,0.00021757,2]
[402999048,1769037040322,-499.99,0.00021757,2]
[402999049,1769037040331,-9999.99,0.00021757,2]
[402999050,1769037040340,-8515.54,0.00021757,2]
[402999051,1769037040349,-2110.06,0.00021757,2]
[402999052,1769037040359,-168.0,0.00021776,2]
[402999053,1769037040368,-168.0,0.00021887,2]